fUST/lending_fUST_20250627
["ID","MTS","AMOUNT","RATE_DAILY","PERIOD"]
[367983110,1750983046899,-494.92698807,0.00021258,2]
[367983112,1750983046908,-460.0,0.00021258,2]
[367983114,1750983046917,-460.0,0.00021258,2]
[367983116,1750983046928,-460.0,0.00021258,2]
[367983118,1750983046938,-355.39522796,0.00021258,2]
[367983120,1750983046948,-460.0,0.00021258,2]
[367983122,1750983046957,-460.0,0.00021258,2]
[367983124,1750983046966,-460.0,0.00021258,2]
[367983126,1750983046976,-460.0,0.00021258,2]
[367983128,1750983046985,-466.7896856,0.00021258,2]
[367983130,1750983046995,-460.0,0.00021258,2]
[367983132,1750983047005,-460.0,0.00021258,2]
[367983134,1750983047015,-470.49,0.00021258,2]
[367983136,1750983047025,-666.12,0.00021258,2]
[367983138,1750983047034,-460.0,0.00021258,2]
[367983140,1750983047043,-500.0,0.00021258,2]
[367983142,1750983047052,-961.7,0.00021258,2]
[367983144,1750983047062,-782.6,0.00021258,2]
[367983146,1750983047071,-487.68,0.00021258,2]
[367983148,1750983047081,-460.0,0.00021258,2]
[367983150,1750983047091,-460.0,0.00021258,2]
[367983152,1750983047101,-707.97,0.00021258,2]
[367983154,1750983047110,-460.0,0.00021258,2]
[367983156,1750983047119,-460.0,0.00021258,2]
[367983158,1750983047129,-153.226755,0.00021258,2]
[367983160,1750983047138,-396.99,0.00021258,2]
[367983162,1750983047148,-151.0,0.00021258,2]
[367983164,1750983047158,-151.0,0.00021258,2]
[367983166,1750983047167,-151.0,0.00021258,2]
[367983168,1750983047177,-501.14,0.00021258,2]
[367983170,1750983047187,-908.8,0.00021258,2]
[367983172,1750983047196,-460.0,0.00021258,2]
[367983174,1750983047209,-812.8,0.00021258,2]
[367983175,1750983047218,-651.35,0.00021258,2]
[367983177,1750983047228,-151.0,0.00021258,2]
[367983179,1750983047238,-151.0,0.00021258,2]
[367983181,1750983047248,-1029.33,0.00021258,2]
[367983183,1750983047258,-460.0,0.00021258,2]
[367983185,1750983047268,-151.0,0.00021258,2]
[367983187,1750983047278,-864.02,0.00021258,2]
[367983189,1750983047287,-460.0,0.00021258,2]
[367983191,1750983047297,-460.0,0.00021258,2]
[367983193,1750983047307,-460.0,0.00021258,2]
[367983195,1750983047317,-551.86,0.00021258,2]
[367983197,1750983047326,-460.0,0.00021258,2]
[367983199,1750983047337,-151.0,0.00021258,2]
[367983201,1750983047346,-661.62,0.00021258,2]
[367983203,1750983047356,-1147.3,0.00021258,2]
[367983205,1750983047365,-460.0,0.00021258,2]
[367983207,1750983047375,-460.0,0.00021258,2]
[367983209,1750983047385,-460.0,0.00021258,2]
[367983211,1750983047394,-460.0,0.00021258,2]
[367983213,1750983047404,-686.29,0.00021258,2]
[367983215,1750983047413,-151.0,0.00021258,2]
[367983217,1750983047423,-151.0,0.00021258,2]
[367983219,1750983047434,-460.0,0.00021258,2]
[367983221,1750983047444,-1649.08,0.00021258,2]
[367983223,1750983047453,-441.54947,0.00021258,2]
[367983225,1750983047463,-441.54947,0.00021258,2]
[367983227,1750983047473,-460.0,0.00021258,2]
[367983229,1750983047482,-348.161406,0.00021258,2]
[367983231,1750983047492,-460.0,0.00021258,2]
[367983233,1750983047502,-348.161406,0.00021258,2]
[367983234,1750983047511,-1112.76,0.00021258,2]
[367983236,1750983047520,-460.0,0.00021258,2]
[367983238,1750983047530,-892.62,0.00021258,2]
[367983240,1750983047540,-375.48756,0.00021258,2]
[367983242,1750983047549,-375.48756,0.00021258,2]
[367983244,1750983047559,-492.67,0.00021258,2]
[367983246,1750983047569,-460.0,0.00021258,2]
[367983248,1750983047578,-460.0,0.00021258,2]
[367983250,1750983047588,-582.78,0.00021258,2]
[367983252,1750983047598,-464.73,0.00021258,2]
[367983254,1750983047607,-2813.731777,0.00021258,2]
[367983256,1750983047616,-460.0,0.00021258,2]
[367983258,1750983047626,-2813.731777,0.00021258,2]
[367983260,1750983047635,-460.0,0.00021258,2]
[367983262,1750983047644,-496.46219518,0.00021287,2]
[367983264,1750983047655,-575.0264769,0.000213,2]
[367983266,1750983047664,-159.2154015,0.000213,2]
[367983268,1750983047674,-151.0,0.000213,4]
[367983270,1750983047683,-766.81353729,0.00021346,2]
[367983272,1750983047694,-151.0,0.000214,4]
[367983274,1750983047703,-151.0,0.000214,4]
[367983276,1750983047713,-151.0,0.000214,4]
[367983278,1750983047723,-3198.70300901,0.00021417,5]
[367983280,1750983047733,-496.46219518,0.00021427,2]
[367983282,1750983047742,-178.02557656,0.00021473,2]
[367983284,1750983047754,-500.0,0.00021473,2]
[367983286,1750983047764,-500.0,0.00021473,2]
[367983288,1750983047773,-500.0,0.00021473,2]
[367983290,1750983047783,-500.0,0.00021477,2]
[367983292,1750983047792,-460.0,0.00021488,2]
[367983294,1750983047801,-460.0,0.00021488,2]
[367983296,1750983047811,-460.0,0.00021488,2]
[367983298,1750983047821,-484.18,0.00021488,2]
[367983300,1750983047831,-500.0,0.00021488,2]
[367983302,1750983047840,-151.0,0.00021488,2]
[367983304,1750983047850,-151.0,0.00021488,2]
[367983305,1750983047859,-151.0,0.00021488,2]
[367983307,1750983047869,-151.0,0.00021488,2]
[367983309,1750983047878,-151.0,0.00021488,2]
[367983311,1750983047888,-151.0,0.00021488,2]
[367983313,1750983047897,-151.0,0.00021488,2]
[367983315,1750983047906,-151.0,0.00021488,2]
[367983317,1750983047915,-931.11,0.00021488,2]
[367983319,1750983047925,-931.11,0.00021488,2]
[367983321,1750983047935,-931.11,0.00021488,2]
[367983323,1750983047944,-931.11,0.00021488,2]
[367983325,1750983047953,-931.23618838,0.00021488,2]
[367983327,1750983047963,-3601.87,0.00021489,2]
[367983329,1750983047972,-1785.72,0.00021489,2]
[367983331,1750983047982,-460.0,0.00021489,2]
[367983333,1750983047991,-272.19,0.00021489,2]
[367983335,1750983048000,-151.0,0.00021489,2]
[367983337,1750983048010,-151.0,0.00021499,2]
[367983339,1750983048019,-151.0,0.00021499,2]
[367983341,1750983048028,-1079.022865,0.00021499,2]
[367983342,1750983048038,-1079.022865,0.00021499,2]
[367983356,1750983048153,-151.0,0.00021499,2]
[367983358,1750983048177,-151.0,0.00021499,2]
[367983361,1750983048187,-65799.4363879,0.000215,5]
[367983382,1750983048401,-9521.55214953,0.000215,5]
[367983406,1750983048625,-561.23456892,0.00020965,2]
[367983408,1750983048635,-500.0,0.0002098,2]
[367983410,1750983048644,-429.63,0.0002098,2]
[367983412,1750983048654,-69133.66433812,0.000215,5]
[367983433,1750983048865,-70116.56248146,0.000215,5]
[367983481,1750983049359,-460.0,0.00020968,2]
[367983483,1750983049369,-460.0,0.00020968,2]
[367983484,1750983049379,-153420.62837356,0.000215,5]
[367983485,1750983049389,-151.0,0.000215,2]
[367983486,1750983049399,-151.0,0.000215,2]
[367983487,1750983049408,-151.0,0.000215,2]
[367983488,1750983049418,-151.0,0.000215,2]
[367983489,1750983049429,-151.0,0.000215,3]
[367983490,1750983049438,-1079.022865,0.000215,2]
[367983491,1750983049447,-1079.022865,0.000215,2]
[367983492,1750983049456,-151.0,0.000215,2]
[367983493,1750983049465,-161.413419,0.000215,2]
[367983494,1750983049474,-161.413419,0.000215,2]
[367983495,1750983049484,-151.0,0.000215,2]
[367983496,1750983049493,-151.0,0.000215,2]
[367983497,1750983049502,-151.0,0.000215,2]
[367983498,1750983049512,-151.0,0.000215,2]
[367983499,1750983049521,-151.0,0.000215,2]
[367983500,1750983049530,-151.0,0.000215,2]
[367983501,1750983049539,-151.0,0.000215,2]
[367983502,1750983049548,-151.0,0.000215,2]
[367983503,1750983049557,-151.0,0.000215,2]
[367983504,1750983049567,-151.0,0.000215,2]
[367983505,1750983049577,-151.0,0.000215,2]
[367983506,1750983049587,-151.0,0.000215,2]
[367983507,1750983049597,-151.0,0.000215,2]
[367983509,1750983049606,-151.0,0.000215,2]
[367983511,1750983049616,-151.0,0.000215,2]
[367983513,1750983049626,-151.0,0.000215,2]
[367983515,1750983049636,-151.0,0.000215,2]
[367983517,1750983049645,-151.0,0.000215,2]
[367983519,1750983049654,-441.54947,0.000215,2]
[367983521,1750983049663,-441.54947,0.000215,2]
[367983523,1750983049674,-348.161406,0.000215,2]
[367983525,1750983049683,-348.161406,0.000215,2]
[367983527,1750983049692,-375.48756,0.000215,2]
[367983529,1750983049701,-375.48756,0.000215,2]
[367983530,1750983049710,-2813.731777,0.000215,2]
[367983532,1750983049720,-2813.731777,0.000215,2]
[367983534,1750983049729,-151.0,0.000215,2]
[367983536,1750983049739,-460.0,0.00021513,2]
[367983538,1750983049748,-528.7,0.00021513,2]
[367983540,1750983049757,-460.0,0.00021513,2]
[367983542,1750983049767,-460.0,0.00021513,2]
[367983544,1750983049776,-460.0,0.00021515,2]
[367983546,1750983049786,-460.0,0.00021515,2]
[367983548,1750983049795,-448.33,0.00021515,2]
[367983550,1750983049805,-460.0,0.00021515,2]
[367983552,1750983049814,-460.0,0.00021515,2]
[367983554,1750983049823,-606.15,0.00021515,2]
[367983556,1750983049832,-460.0,0.00021515,2]
[367983558,1750983049842,-793.1,0.00021515,2]
[367983560,1750983049852,-460.0,0.00021515,2]
[367983562,1750983049861,-3297.38,0.00021515,2]
[367983564,1750983049870,-460.0,0.00021515,2]
[367983566,1750983049879,-460.0,0.00021515,2]
[367983568,1750983049888,-2984.78,0.00021515,2]
[367983570,1750983049898,-460.0,0.00021515,2]
[367983572,1750983049908,-460.0,0.00021516,2]
[367983574,1750983049918,-460.0,0.00021516,2]
[367983576,1750983049929,-460.0,0.00021516,2]
[367983578,1750983049939,-859.89,0.00021516,2]
[367983580,1750983049948,-748.76,0.00021516,2]
[367983581,1750983049957,-502.72,0.00021516,2]
[367983583,1750983049967,-460.0,0.00021516,2]
[367983585,1750983049981,-2536.83,0.00021516,2]
[367983587,1750983049990,-2045.1,0.00021516,2]
[367983589,1750983050000,-1358.9,0.00021516,2]
[367983591,1750983050009,-3186.09,0.00021516,2]
[367983593,1750983050018,-648.25,0.00021516,2]
[367983595,1750983050027,-602.5,0.00021516,2]
[367983597,1750983050037,-2005.53,0.00021516,2]
[367983599,1750983050046,-460.0,0.00021516,2]
[367983601,1750983050055,-854.46,0.00021516,2]
[367983603,1750983050064,-756.31,0.00021516,2]
[367983605,1750983050074,-665.59,0.00021516,2]
[367983607,1750983050084,-551.26,0.00021516,2]
[367983609,1750983050093,-2278.35,0.00021516,2]
[367983611,1750983050102,-460.0,0.00021517,2]
[367983613,1750983050111,-460.0,0.00021517,2]
[367983615,1750983050121,-460.0,0.00021517,2]
[367983617,1750983050131,-505.56663716,0.00021517,2]
[367983619,1750983050140,-460.0,0.00021517,2]
[367983621,1750983050150,-460.0,0.00021517,2]
[367983623,1750983050159,-599.41,0.00021517,2]
[367983624,1750983050168,-257.62276215,0.00021517,2]
[367983626,1750983050179,-460.39461276,0.00021517,2]
[367983628,1750983050189,-460.0,0.00021517,2]
[367983630,1750983050198,-460.0,0.00021517,2]
[367983632,1750983050212,-343.92217576,0.00021517,2]
[367983634,1750983050221,-460.0,0.00021517,2]
[367983636,1750983050231,-460.0,0.00021517,2]
[367983638,1750983050240,-460.0,0.00021517,2]
[367983640,1750983050251,-337.24719096,0.00021517,2]
[367983642,1750983050260,-460.0,0.00021517,2]
[367983644,1750983050269,-460.0,0.00021517,2]
[367983646,1750983050279,-667.22,0.00021517,2]
[367983648,1750983050289,-391.43909346,0.00021517,2]
[367983650,1750983050298,-460.0,0.00021517,2]
[367983652,1750983050307,-460.0,0.00021517,2]
[367983654,1750983050316,-460.0,0.00021517,2]
[367983656,1750983050326,-460.0,0.00021517,2]
[367983658,1750983050335,-460.0,0.00021517,2]
[367983660,1750983050344,-460.0,0.00021517,2]
[367983662,1750983050353,-460.0,0.00021517,2]
[367983663,1750983050362,-209.4362204,0.00021517,2]
[367983665,1750983050372,-460.0,0.00021517,2]
[367983681,1750983050513,-460.0,0.00021517,2]
[367983683,1750983050523,-460.0,0.00021517,2]
[367983685,1750983050533,-460.0,0.00021517,2]
[367983687,1750983050543,-500.0,0.00021517,2]
[367983689,1750983050552,-296.31278745,0.00021517,2]
[367983691,1750983050561,-463.44550028,0.00021517,2]
[367983693,1750983050571,-460.0,0.00021517,2]
[367983695,1750983050580,-460.0,0.00021517,2]
[367983697,1750983050589,-460.0,0.00021517,2]
[367983699,1750983050598,-460.0,0.00021517,2]
[367983701,1750983050607,-460.0,0.00021517,2]
[367983703,1750983050617,-460.0,0.00021517,2]
[367983705,1750983050627,-460.0,0.00021517,2]
[367983707,1750983050636,-460.0,0.00021517,2]
[367983709,1750983050645,-460.0,0.00021517,2]
[367983711,1750983050654,-460.0,0.00021517,2]
[367983713,1750983050664,-460.0,0.00021517,2]
[367983715,1750983050673,-493.29,0.00021517,2]
[367983716,1750983050682,-460.0,0.00021517,2]
[367983718,1750983050691,-460.0,0.00021517,2]
[367983720,1750983050701,-460.0,0.00021517,2]
[367983722,1750983050710,-460.0,0.00021517,2]
[367983724,1750983050720,-460.0,0.00021517,2]
[367983726,1750983050729,-460.0,0.00021517,2]
[367983728,1750983050739,-333.63718952,0.00021517,2]
[367983730,1750983050748,-460.0,0.00021517,2]
[367983732,1750983050758,-460.0,0.00021517,2]
[367983734,1750983050768,-153.63577998,0.00021517,2]
[367983736,1750983050778,-460.0,0.00021517,2]
[367983738,1750983050787,-663.2,0.00021517,2]
[367983740,1750983050796,-460.0,0.00021517,2]
[367983742,1750983050806,-460.0,0.00021517,2]
[367983744,1750983050815,-460.0,0.00021517,2]
[367983746,1750983050825,-460.0,0.00021517,2]
[367983748,1750983050835,-460.0,0.00021517,2]
[367983750,1750983050845,-460.0,0.00021517,2]
[367983752,1750983050854,-378.4013613,0.00021517,2]
[367983754,1750983050863,-460.0,0.00021518,2]
[367983755,1750983050872,-494.52,0.00021518,2]
[367983757,1750983050882,-460.0,0.00021518,2]
[367983759,1750983050891,-460.0,0.00021518,2]
[367983761,1750983050900,-460.0,0.00021518,2]
[367983763,1750983050910,-460.0,0.00021518,2]
[367983765,1750983050919,-391.28293949,0.00021518,2]
[367983767,1750983050930,-460.0,0.00021518,2]
[367983769,1750983050939,-231.86038034,0.00021521,2]
[367983771,1750983050948,-1000.0,0.00021521,2]
[367983773,1750983050958,-1000.0,0.00021521,2]
[367983775,1750983050968,-500.0,0.00021521,2]
[367983777,1750983050977,-1000.0,0.00021521,2]
[367983779,1750983050986,-500.0,0.00021521,2]
[367983781,1750983050996,-500.0,0.00021521,2]
[367983783,1750983051005,-1000.0,0.00021521,2]
[367983785,1750983051015,-366.36247253,0.00021521,2]
[367983787,1750983051025,-1000.0,0.00021521,2]
[367983789,1750983051035,-500.0,0.00021521,2]
[367983791,1750983051044,-500.0,0.00021521,2]
[367983793,1750983051053,-151.0,0.00021524,2]
[367983795,1750983051062,-151.0,0.00021524,2]
[367983797,1750983051072,-151.0,0.00021524,2]
[367983799,1750983051081,-151.0,0.00021524,2]
[367983801,1750983051091,-151.0,0.00021524,2]
[367983803,1750983051101,-151.0,0.00021524,2]
[367983805,1750983051111,-151.0,0.00021524,2]
[367983807,1750983051120,-151.0,0.00021524,2]
[367983809,1750983051130,-332.896903,0.00021524,2]
[367983811,1750983051140,-332.896903,0.00021524,2]
[367983813,1750983051149,-327.56209,0.00021524,2]
[367983815,1750983051158,-327.56209,0.00021524,2]
[367983817,1750983051167,-151.0,0.00021524,2]
[367983819,1750983051178,-151.0,0.00021524,2]
[367983821,1750983051188,-460.0,0.00021524,2]
[367983823,1750983051197,-151.0,0.00021524,2]
[367983825,1750983051211,-1000.0,0.00021524,2]
[367983827,1750983051221,-1000.0,0.00021524,2]
[367983829,1750983051230,-460.0,0.00021524,2]
[367983831,1750983051239,-460.0,0.00021524,2]
[367983833,1750983051249,-460.0,0.00021524,2]
[367983835,1750983051258,-460.0,0.00021524,2]
[367983837,1750983051267,-460.0,0.00021524,2]
[367983839,1750983051277,-460.0,0.00021524,2]
[367983841,1750983051287,-1079.022865,0.00021524,2]
[367983843,1750983051297,-1079.022865,0.00021524,2]
[367983845,1750983051307,-151.0,0.00021524,2]
[367983847,1750983051316,-460.0,0.00021524,2]
[367983849,1750983051326,-161.413419,0.00021524,2]
[367983851,1750983051335,-161.413419,0.00021524,2]
[367983853,1750983051344,-151.0,0.00021524,2]
[367983855,1750983051354,-460.0,0.00021524,2]
[367983857,1750983051363,-460.0,0.00021524,2]
[367983859,1750983051373,-416.58234931,0.00021524,2]
[367983861,1750983051383,-460.0,0.00021524,2]
[367983863,1750983051392,-151.0,0.00021524,2]
[367983865,1750983051401,-460.0,0.00021524,2]
[367983867,1750983051410,-151.0,0.00021524,2]
[367983869,1750983051419,-151.0,0.00021524,2]
[367983871,1750983051430,-151.0,0.00021524,2]
[367983873,1750983051439,-151.0,0.00021524,2]
[367983875,1750983051448,-151.0,0.00021524,2]
[367983876,1750983051457,-151.0,0.00021524,2]
[367983878,1750983051466,-151.0,0.00021524,2]
[367983880,1750983051475,-151.0,0.00021524,2]
[367983882,1750983051484,-151.0,0.00021524,2]
[367983884,1750983051494,-151.0,0.00021524,2]
[367983886,1750983051503,-151.0,0.00021524,2]
[367983888,1750983051512,-151.0,0.00021524,2]
[367983890,1750983051521,-151.0,0.00021524,2]
[367983892,1750983051531,-151.0,0.00021524,2]
[367983894,1750983051540,-151.0,0.00021524,2]
[367983896,1750983051550,-151.0,0.00021524,2]
[367983898,1750983051560,-441.54947,0.00021524,2]
[367983900,1750983051569,-441.54947,0.00021524,2]
[367983902,1750983051578,-348.161406,0.00021524,2]
[367983904,1750983051587,-348.161406,0.00021524,2]
[367983906,1750983051596,-375.48756,0.00021524,2]
[367983908,1750983051606,-375.48756,0.00021524,2]
[367983910,1750983051616,-2813.731777,0.00021524,2]
[367983912,1750983051625,-2813.731777,0.00021524,2]
[367983915,1750983051641,-151.0,0.00021524,2]
[367983918,1750983051656,-460.0,0.00021527,2]
[367983920,1750983051670,-460.0,0.00021527,2]
[367983922,1750983051683,-460.0,0.00021527,2]
[367983925,1750983051698,-460.0,0.00021527,2]
[367983927,1750983051711,-460.0,0.00021527,2]
[367983930,1750983051726,-460.0,0.00021527,2]
[367983932,1750983051740,-633.66,0.00021527,2]
[367983935,1750983051755,-290.29771271,0.00021527,2]
[367983937,1750983051769,-495.66,0.00021527,2]
[367983940,1750983051783,-349.97000075,0.00021527,2]
[367983942,1750983051795,-460.0,0.00021527,2]
[367983944,1750983051807,-460.0,0.00021527,2]
[367983947,1750983051821,-460.0,0.00021527,2]
[367983949,1750983051835,-537.18912083,0.00021527,2]
[367983952,1750983051848,-460.0,0.00021527,2]
[367983954,1750983051858,-460.0,0.00021527,2]
[367983956,1750983051871,-300.0,0.00021527,2]
[367983958,1750983051883,-460.0,0.00021527,2]
[367983961,1750983051896,-460.0,0.00021527,2]
[367983963,1750983051911,-460.0,0.00021527,2]
[367983964,1750983051925,-460.0,0.00021527,2]
[367983965,1750983051938,-460.0,0.00021527,2]
[367983966,1750983051953,-460.0,0.00021527,2]
[367983967,1750983051964,-477.55,0.00021527,2]
[367983968,1750983051975,-460.0,0.00021527,2]
[367983970,1750983051987,-460.0,0.00021527,2]
[367983973,1750983052001,-460.0,0.00021527,2]
[367983975,1750983052016,-259.65334727,0.00021527,2]
[367983977,1750983052028,-460.0,0.00021527,2]
[367983980,1750983052040,-460.0,0.00021527,2]
[367983982,1750983052052,-460.0,0.00021527,2]
[367983984,1750983052066,-460.0,0.00021527,2]
[367983987,1750983052078,-460.0,0.00021527,2]
[367983989,1750983052090,-460.0,0.00021527,2]
[367983991,1750983052101,-311.25242609,0.00021527,2]
[367983993,1750983052113,-460.0,0.00021527,2]
[367983995,1750983052125,-460.0,0.00021527,2]
[367983998,1750983052136,-460.0,0.00021527,2]
[367984000,1750983052148,-466.17,0.00021527,2]
[367984002,1750983052160,-460.0,0.00021527,2]
[367984004,1750983052171,-683.9,0.00021527,2]
[367984007,1750983052185,-460.0,0.00021527,2]
[367984009,1750983052197,-460.0,0.00021527,2]
[367984011,1750983052211,-772.61,0.00021527,2]
[367984013,1750983052223,-542.71,0.00021527,2]
[367984016,1750983052235,-460.0,0.00021527,2]
[367984018,1750983052247,-460.0,0.00021527,2]
[367984020,1750983052260,-932.89,0.00021527,2]
[367984022,1750983052272,-701.12,0.00021527,2]
[367984025,1750983052283,-460.0,0.00021527,2]
[367984027,1750983052294,-460.0,0.00021527,2]
[367984029,1750983052307,-460.0,0.00021527,2]
[367984031,1750983052318,-791.64,0.00021527,2]
[367984034,1750983052330,-460.0,0.00021527,2]
[367984036,1750983052341,-460.0,0.00021527,2]
[367984038,1750983052352,-568.19,0.00021527,2]
[367984040,1750983052364,-460.0,0.00021527,2]
[367984043,1750983052376,-814.63,0.00021527,2]
[367984045,1750983052387,-460.0,0.00021527,2]
[367984047,1750983052399,-460.0,0.00021527,2]
[367984049,1750983052411,-673.33,0.00021527,2]
[367984052,1750983052422,-460.0,0.00021527,2]
[367984054,1750983052435,-469.12819751,0.00021527,2]
[367984056,1750983052447,-379.67,0.00021527,2]
[367984058,1750983052458,-466.04,0.00021527,2]
[367984060,1750983052469,-1094.4,0.00021527,2]
[367984063,1750983052480,-460.0,0.00021527,2]
[367984065,1750983052492,-733.84,0.00021527,2]
[367984067,1750983052504,-905.02,0.00021527,2]
[367984069,1750983052516,-1392.28,0.00021527,2]
[367984072,1750983052527,-757.1,0.00021527,2]
[367984074,1750983052539,-460.0,0.00021527,2]
[367984076,1750983052551,-898.55,0.00021527,2]
[367984079,1750983052564,-460.0,0.00021527,2]
[367984081,1750983052575,-460.0,0.00021527,2]
[367984083,1750983052587,-460.0,0.00021527,2]
[367984085,1750983052598,-460.0,0.00021527,2]
[367984087,1750983052610,-529.06,0.00021527,2]
[367984090,1750983052621,-877.98,0.00021527,2]
[367984092,1750983052635,-844.21,0.00021527,2]
[367984094,1750983052646,-669.77,0.00021527,2]
[367984096,1750983052658,-460.0,0.00021527,2]
[367984099,1750983052670,-460.0,0.00021527,2]
[367984101,1750983052681,-658.8,0.00021527,2]
[367984103,1750983052694,-460.0,0.00021527,2]
[367984105,1750983052706,-460.0,0.00021529,2]
[367984107,1750983052717,-460.0,0.00021529,2]
[367984110,1750983052730,-4838.66,0.00021529,2]
[367984112,1750983052742,-1395.73,0.00021529,2]
[367984114,1750983052754,-552.08,0.00021529,2]
[367984117,1750983052766,-460.0,0.0002153,2]
[367984119,1750983052779,-460.0,0.0002153,2]
[367984121,1750983052790,-289.10972175,0.0002153,2]
[367984123,1750983052800,-460.0,0.0002153,2]
[367984125,1750983052809,-526.79,0.0002153,2]
[367984127,1750983052819,-608.35,0.0002153,2]
[367984129,1750983052829,-1206.24,0.0002153,2]
[367984131,1750983052839,-460.0,0.0002153,2]
[367984133,1750983052848,-500.14,0.0002153,2]
[367984135,1750983052858,-540.07,0.0002153,2]
[367984137,1750983052867,-208.16879583,0.0002153,2]
[367984139,1750983052878,-602.49,0.0002153,2]
[367984141,1750983052887,-460.0,0.0002153,2]
[367984143,1750983052896,-758.21,0.0002153,2]
[367984145,1750983052906,-1083.99,0.0002153,2]
[367984147,1750983052915,-420.0,0.00021531,2]
[367984149,1750983052925,-1843.29,0.00021531,2]
[367984151,1750983052935,-530.05,0.00021531,2]
[367984154,1750983052945,-460.0,0.00021531,2]
[367984155,1750983052955,-2378.78,0.00021531,2]
[367984158,1750983052965,-509.19,0.00021531,2]
[367984159,1750983052975,-1683.53,0.00021531,2]
[367984161,1750983052984,-460.0,0.00021531,2]
[367984164,1750983052996,-460.0,0.00021532,2]
[367984166,1750983053006,-460.0,0.00021532,2]
[367984168,1750983053015,-460.0,0.00021532,2]
[367984170,1750983053025,-460.0,0.00021532,2]
[367984172,1750983053035,-460.0,0.00021532,2]
[367984174,1750983053044,-460.0,0.00021532,2]
[367984176,1750983053055,-460.0,0.00021532,2]
[367984178,1750983053064,-460.0,0.00021532,2]
[367984180,1750983053075,-470.49,0.00021532,2]
[367984208,1750983053329,-666.12,0.00021532,2]
[367984211,1750983053348,-460.0,0.00021532,2]
[367984213,1750983053360,-500.0,0.00021532,2]
[367984215,1750983053369,-961.7,0.00021532,2]
[367984217,1750983053379,-782.6,0.00021532,2]
[367984219,1750983053389,-487.68,0.00021532,2]
[367984221,1750983053398,-400.0,0.00021532,2]
[367984223,1750983053408,-151.0,0.00021532,2]
[367984225,1750983053418,-161.413419,0.00021532,2]
[367984227,1750983053428,-161.413419,0.00021532,2]
[367984229,1750983053437,-460.0,0.00021532,2]
[367984231,1750983053447,-151.0,0.00021532,2]
[367984233,1750983053457,-707.97,0.00021532,2]
[367984235,1750983053466,-460.0,0.00021532,2]
[367984237,1750983053475,-460.0,0.00021532,2]
[367984239,1750983053485,-151.0,0.00021532,2]
[367984241,1750983053494,-151.0,0.00021532,2]
[367984243,1750983053504,-151.0,0.00021532,2]
[367984245,1750983053513,-214.311168,0.00021532,2]
[367984247,1750983053522,-151.0,0.00021532,2]
[367984249,1750983053532,-501.14,0.00021532,2]
[367984251,1750983053542,-908.8,0.00021532,2]
[367984253,1750983053551,-151.0,0.00021532,2]
[367984255,1750983053560,-151.0,0.00021532,2]